Cogmind - Beta 15 @@@ ROGUE MODE // 2025.05.26 @ 23:58:32 Player: Scared Dad Result: Destroyed by SF-PN1(j) with Overtuned Pulse Rifle Performance ------------- Evolutions (0) 0 Regions Visited (3) 600 Robots Destroyed (0) 0 Value Destroyed (0) 0 Prototype IDs (7) 140 Alien Tech Used (0) 0 Bonus (800) 800 TOTAL SCORE: 1540 Bonus ------- Registered with UFD 300 Met Optimus in HQ 500 Cogmind --------- Core Integrity 0/250 Matter 260/300 Energy 170/170 System Corruption 0% Temperature Cool (12) Movement Flying (40) Location -7/Scraptown Parts ------- > --- POWER (1) -------- Makeshift Power Source > --- PROPULSION (2) --- Gravmag System Flight Unit > --- UTILITY (2) ------ Advanced Weight Redist. System Improved Signal Interpreter > --- WEAPON (2) ------- CPS Tube > --- INVENTORY (5) ---- Medium Treads Subdweller Optics CPS Tube (2) DRS Beacon (Ready) Peak State ------------ > --- POWER ------------ Makeshift Power Source > --- PROPULSION ------- Gravmag System Flight Unit > --- UTILITY ---------- Advanced Weight Redist. System Improved Signal Interpreter > --- WEAPON ----------- CPS Tube CPS Tube > --- INVENTORY -------- Subdweller Optics CPS Tube Junk Cannon DRS Beacon [Rating: 23] Favorites ----------- Power Makeshift Power Source Engine Makeshift Power Source Propulsion Flight Unit Treads Light Treads Wheel Wheel Hover Unit Gravmag System Flight Unit Flight Unit Utility Signal Interpreter Device Advanced Weight Redist. System Storage Small Storage Unit Processor Signal Interpreter Weapon Assault Rifle Energy Gun EM Pulse Gun Ballistic Gun Assault Rifle Special Weapon CPS Tube Build | -11 -10 -10 -7 ------- Run | Yrd Mat Sub Scr Slots Evolved . | . . . . Power . | . . . . Propulsion . | . . . . Utility . | . . . . Weapon . | . . . . Parts Attached 24 | 7 1 9 7 Power 3 | 1 . 1 1 Engine 3 | 1 . 1 1 Core . | . . . . Reactor . | . . . . Propulsion 9 | 2 1 5 1 Treads 2 | . . 2 . Leg . | . . . . Wheel 4 | 2 1 1 . Hover 1 | . . . 1 Flight 2 | . . 2 . Utility 6 | 1 . 3 2 Device 3 | . . 2 1 Storage 1 | 1 . . . Processor 2 | . . 1 1 Hackware . | . . . . Protection . | . . . . Artifact . | . . . . Weapon 6 | 3 . . 3 Energy Gun 1 | 1 . . . Energy Cannon . | . . . . Ballistic Gun 2 | 2 . . . Ballistic Cannon . | . . . . Launcher . | . . . . Special Weapon 3 | . . . 3 Impact Weapon . | . . . . Slashing Weapon . | . . . . Piercing Weapon . | . . . . Special Melee Weapon . | . . . . Unidentified Prototypes 1 | . . . 1 Parts Lost 4 | . . 4 . Power 1 | . . 1 . Propulsion 2 | . . 2 . Utility 1 | . . 1 . Weapon . | . . . . Highest Loss Streak 3 | . . 3 . To Critical Strikes . | . . . . Average Backups 4 | 2 7 4 4 Power . | . 1 . . Propulsion 1 | 1 4 2 . Utility . | . 1 . . Weapon . | . 1 . 1 Tool/Special . | . . . . Unused Backups 7 | . 3 1 3 Power 1 | . 1 . . Propulsion 3 | . 2 . 1 Utility 1 | . . 1 . Weapon 1 | . . . 1 Tool/Special 1 | . . . 1 Average Slot Usage (%) 65 | . 85 84 55 Engine 11 | . 14 8 11 Treads 1 | . . 6 . Wheel 7 | . 28 14 . Flight 10 | . . 7 13 Device 5 | . . 6 7 Storage 4 | . 14 12 . Processor 10 | . . 6 14 Energy Gun 2 | . 14 4 . Ballistic Gun 6 | . 14 17 . Special Weapon 3 | . . . 5 Peak Build Rating 23 | 6 6 9 23 Average Rating 8 | 4 6 6 10 On Entrance 5 | . 6 6 9 Naked Turns . | . . . . Heaviest Build 15 | 14 14 15 6 Greatest Support 40 | 26 26 40 13 Greatest Overweight (x) 1 | . . 1 . Average Overweight (x) . | . . . . Largest Inventory Capacity 8 | 8 8 8 5 Average Capacity 6 | 6 8 7 5 Most Carried 8 | 6 8 8 5 Average Carried 5 | 3 7 4 4 Final Capacity 8 | 8 8 5 5 Final Carried 8 | 6 8 4 4 Class Distribution -------------------- 86% | Mutant 13% | Derelict-Mutant Dominant Class ---------------- Mutant | -10/Materials Mutant | -10/Subcaves Mutant | -7/Scraptown Resources | -11 -10 -10 -7 ----------- Run | Yrd Mat Sub Scr Matter Collected 457 | 174 104 129 50 Remotely . | . . . . Salvage Created . | . . . . Parts . | . . . . Haulers Intercepted . | . . . . Recyclers Shooed . | . . . . Parts Field Recycled . | . . . . Retrieved Matter . | . . . . Parts Self-Destructed 12 | . . 12 . Prevented . | . . . . Kills | -11 -10 -10 -7 ------- Run | Yrd Mat Sub Scr Combat Hostiles Destroyed . | . . . . Classes Destroyed . | . . . . Best Kill Streak . | . . . . Combat Bots Only . | . . . . Max Kills in Single Turn . | . . . . Gunslinging . | . . . . Exploded . | . . . . Melee . | . . . . Uniques/NPCs Destroyed . | . . . . Combat | -11 -10 -10 -7 -------- Run | Yrd Mat Sub Scr Hostile Shots Fired 54 | . . 50 4 Missed 16 | . . 16 . Hits 38 | . . 34 4 Projectile 38 | . . 34 4 Damage Taken 806 | . 4 715 87 Core 267 | . 4 223 40 Absorbed by Shields . | . . . . Core Remaining (%) 100 | 100 . . . Volleys Fired 9 | . . 6 3 Largest 2 | . . 2 1 Hottest 60 | . . 60 . Shots Fired 15 | . . 12 3 Gun 12 | . . 12 . Cannon . | . . . . Launcher . | . . . . Special 3 | . . . 3 Kinetic 7 | . . 7 . Thermal . | . . . . Explosive . | . . . . Electromagnetic 5 | . . 5 . Robot Hit Streak 8 | . . 8 2 Robot Miss Streak 1 | . . 1 1 Penetration Max . | . . . . Secondary Targets . | . . . . Shots Hit Robots 11 | . . 9 2 Core Hits . | . . . . Critical Kills . | . . . . Critical Parts Destroyed . | . . . . Critical Strikes 1 | . . 1 . Destroy 1 | . . 1 . Melee Attacks . | . . . . Impact . | . . . . Slashing . | . . . . Piercing . | . . . . Sneak Attacks . | . . . . Combat Hostiles . | . . . . Follow-up Attacks . | . . . . Damage Inflicted 107 | . 8 99 . Guns 99 | . . 99 . Cannons . | . . . . Explosions . | . . . . Melee . | . . . . Ramming 8 | . 8 . . Kinetic 55 | . . 55 . Thermal . | . . . . Explosive . | . . . . Electromagnetic 44 | . . 44 . Impact . | . . . . Slashing . | . . . . Piercing . | . . . . Highest Corruption . | . . . . Average Corruption . | . . . . Corruption Purged . | . . . . Corruption Blocked . | . . . . Overload Shots . | . . . . Overflow Damage . | . . . . Projectiles . | . . . . Explosions . | . . . . Melee . | . . . . Knockbacks . | . . . . Impact . | . . . . Kinetic . | . . . . Secondary . | . . . . Self-Inflicted Damage 4 | . 4 . . Shots . | . . . . Rammed 1 | . 1 . . Targets Rammed 1 | . 1 . . Kicked . | . . . . Crushed . | . . . . Highest Temperature . | . . . . Average Temperature . | . . . . Received Heat Transfer 162 | . . 114 48 Siege Activations . | . . . . Martial Activations . | . . . . Shielding Activations . | . . . . Robots Disrupted . | . . . . Combat Hostiles . | . . . . Robots Corrupted . | . . . . Combat Hostiles . | . . . . Parts Fried . | . . . . Impact Corruptions . | . . . . Robots Melted . | . . . . Combat Hostiles . | . . . . Parts Melted . | . . . . Heat Transferred . | . . . . Parts Sabotaged . | . . . . Parts Stolen . | . . . . Parts Stripped . | . . . . Power Chain Reactions . | . . . . Alert | -11 -10 -10 -7 ------- Run | Yrd Mat Sub Scr Maximum Alert Level . | . . . . Low Security (%) 100 | 100 100 . . Level 1 . | . . . . Level 2 . | . . . . Level 3 . | . . . . Level 4 . | . . . . Level 5 . | . . . . High Security . | . . . . Max Security . | . . . . Peak Influence . | . . . . Initial . | . . . . Average . | . . . . Influence Increases . | . . . . Influence Decreases . | . . . . Squads Dispatched 1 | . 1 . . Investigation . | . . . . Extermination . | . . . . Reinforcement 1 | . 1 . . Assault . | . . . . Garrison . | . . . . Intercept . | . . . . Searches Triggered . | . . . . Construction Impeded . | . . . . Haulers Reinforced . | . . . . Active Scanning Responses . | . . . . Cargo Convoy Interrupts . | . . . . Stealth | -11 -10 -10 -7 --------- Run | Yrd Mat Sub Scr Distress Signals . | . . . . Communications Jammed . | . . . . Distress Signals . | . . . . Times Spotted 11 | . 5 4 2 Peak Tracking Total 3 | . 2 3 2 Tactical Retreats 1 | . . 1 . Traps | -11 -10 -10 -7 ------- Run | Yrd Mat Sub Scr Traps Triggered . | . . . . Indirectly . | . . . . Trap Hack Attempts . | . . . . Triggered . | . . . . Disarmed . | . . . . Reprogrammed . | . . . . Reused . | . . . . Traps Extracted . | . . . . Installed . | . . . . Triggered . | . . . . Machines | -11 -10 -10 -7 ---------- Run | Yrd Mat Sub Scr Machines Disabled . | . . . . Max in Single Turn . | . . . . Machines Repaired . | . . . . Machines Dismantled . | . . . . Machines Sabotaged . | . . . . Overloaded Fab Kills . | . . . . Hacking | -11 -10 -10 -7 --------- Run | Yrd Mat Sub Scr Machines Accessed 9 | . 1 . 8 Terminals 1 | . 1 . . Fabricators . | . . . . Repair Stations . | . . . . Recycling Units . | . . . . Scanalyzers . | . . . . Garrison Access . | . . . . Total Hacks 49 | . 1 . 48 Successful 49 | . 1 . 48 Failed . | . . . . Catastrophic . | . . . . Database Lockouts . | . . . . Manual . | . . . . Terminals 1 | . 1 . . Fabricators . | . . . . Repair Stations . | . . . . Recycling Units . | . . . . Scanalyzers . | . . . . Garrison Access . | . . . . Terminal Hacks 49 | . 1 . 48 Record 42 | . . . 42 Robot Analysis 5 | . . . 5 Locate Traps 1 | . 1 . . Proto ID Catalog 1 | . . . 1 Fabricator Hacks . | . . . . Repair Station Hacks . | . . . . Recycling Unit Hacks . | . . . . Scanalyzer . | . . . . Garrison Access Hacks . | . . . . Unauthorized Hacks . | . . . . Terminals . | . . . . Fabricators . | . . . . Repair Stations . | . . . . Recycling Units . | . . . . Scanalyzers . | . . . . Garrison Access . | . . . . Data Cores Recovered . | . . . . Used . | . . . . Hacking Detections . | . . . . Full Trace Events . | . . . . Feedback Events . | . . . . Feedback Blocked . | . . . . Robot Schematics Acquired . | . . . . Robots Built . | . . . . Authchips . | . . . . Time . | . . . . Total Robot Build Rating . | . . . . Part Schematics Acquired . | . . . . Parts Built . | . . . . Authchips . | . . . . Time . | . . . . Total Part Build Rating . | . . . . Parts Repaired . | . . . . Time . | . . . . Parts Recycled . | . . . . Recycled Matter . | . . . . Retrieved Matter . | . . . . Retrieved Components . | . . . . Parts Scanalyzed . | . . . . Part Schematics Acquired . | . . . . Parts Damaged . | . . . . Bothacking | -11 -10 -10 -7 ------------ Run | Yrd Mat Sub Scr Used RIF Installer . | . . . . Robots Hacked . | . . . . Non-combat . | . . . . Combat . | . . . . Robot Hacks Applied . | . . . . Relay Couplers Released . | . . . . Fabnet Peak Effective % . | . . . . Robots Rewired . | . . . . Allies Hacked . | . . . . Hacks Repelled . | . . . . Allies | -11 -10 -10 -7 -------- Run | Yrd Mat Sub Scr Total Allies . | . . . . Largest Group . | . . . . Highest-Rated Group . | . . . . Highest-Rated Ally . | . . . . Total Orders . | . . . . Ally Attacks . | . . . . Total Damage . | . . . . Kills . | . . . . Allies Corrupted . | . . . . Allies Melted 1 | . . . 1 Intel | -11 -10 -10 -7 ------- Run | Yrd Mat Sub Scr Active Infowar (turns) 303 | . . 154 149 Optics 187 | . . 38 149 Sensors 116 | . . 116 . Robot Analysis Total 5 | . . . 5 Derelict Logs Recovered 1 | . . . 1 Drone Launches . | . . . . Drone Recoveries . | . . . . Exploration | -11 -10 -10 -7 ------------- Run | Yrd Mat Sub Scr Turns Passed 1571 | 49 194 356 972 Spaces Moved 2822 | 39 201 232 2350 Core 4 | 4 . . . Treads 39 | . . 39 . Legs . | . . . . Wheels 429 | 35 201 193 . Hover . | . . . . Flight 2350 | . . . 2350 Fastest Speed 40 | 50 80 80 40 Average Speed 48 | 84 85 98 40 Slowest Speed 160 | 90 90 160 40 Overloaded Moves . | . . . . Propulsion Burnouts . | . . . . Robots Hopped . | . . . . Potential Cave-ins . | . . . . Cave-ins Triggered . | . . . . Exploration Rate (%) 39 | 3 46 12 95 Regions Visited 3 Branch Regions 2 Pre-discovered Areas . | . . . . Known Exits Taken 1 | . . 1 . Unknown Exits Taken 2 | 1 1 . . Scrap Searched 7 | . . . 7 Spaces Dug . | . . . . Terrain Destroyed . | . . . . Melee . | . . . . Projectile . | . . . . AOE . | . . . . Terrain Rammed . | . . . . Walls Destroyed . | . . . . Machines Disabled . | . . . . Actions | -11 -10 -10 -7 --------- Run | Yrd Mat Sub Scr Total 3012 | 51 224 352 2385 Wait 96 | . 13 82 1 Move 2819 | 38 200 231 2350 Hop . | . . . . Pick Up 25 | 6 5 8 6 Fast Attach 11 | 5 . 2 4 Attach 14 | 1 . 9 4 Detach 9 | . . 3 6 Swap 5 | 1 1 2 1 Drop 23 | . 4 9 10 Fire 9 | . . 6 3 Melee . | . . . . Ram 1 | . 1 . . Kick . | . . . . Crush . | . . . . Escape Stasis . | . . . . Rewire . | . . . . Trap . | . . . . Miscellaneous . | . . . . Route ------- -11/Scrapyard -10/Materials (discovered 3 exits: [*Mat] / [*Min] / [*Sub]) -10/Subcaves -7/Scraptown (discovered 2 exits: [*Fac x2]) History --------- Turn | Location | Event 14 | -11/Scrapyard | Discovered new exit (range 16) 50 | -11/Scrapyard | Entered Materials 51 | -10/Materials | Met a group of wandering Federalists 111 | -10/Materials | Discovered new exit (range 7) 125 | -10/Materials | Discovered new exit (range 15) 242 | -10/Materials | Discovered new exit (range 3) 244 | -10/Materials | Entered Subcaves 244 | -10/Subcaves | Accompanied by 1 ally 245 | -10/Subcaves | Continued accompanying wandering Federalists (3) 245 | -10/Subcaves | Approached by a straggling Scientist 303 | -10/Subcaves | Build established: Mutant 354 | -10/Subcaves | Disturbed a concealed Subdweller 364 | -10/Subcaves | Core integrity fell below 50% 371 | -10/Subcaves | Core integrity fell below 20% 397 | -10/Subcaves | Lost 3 parts (2n1u) 497 | -10/Subcaves | Wandering Federalist uncovered a shortcut to Scraptown 546 | -10/Subcaves | Identified exit to Scraptown 600 | -10/Subcaves | Entered Scraptown 665 | -7/Scraptown | Visited Comm Corps 687 | -7/Scraptown | Heard Great Nut preacher, LISTEN AND RECITE! 692 | -7/Scraptown | Visited Spacefarers 834 | -7/Scraptown | Visited The Evicted 848 | -7/Scraptown | Visited Cyclists 876 | -7/Scraptown | Scanned Subdweller tech in exchange for log data 877 | -7/Scraptown | Learned Research terminal intel 886 | -7/Scraptown | Discovered new exit (range 13) 918 | -7/Scraptown | Visited TADAMA 926 | -7/Scraptown | Visited Cave Peace 942 | -7/Scraptown | Visited UFD Registry 942 | -7/Scraptown | Registered with UFD as "Dataface" 985 | -7/Scraptown | Entered Cyclist Reading Room 1015 | -7/Scraptown | Visited Symbiants 1174 | -7/Scraptown | Visited Science Guys 1200 | -7/Scraptown | Visited Junk Cannon Lab 1208 | -7/Scraptown | Found Prototype Special Weapon 1220 | -7/Scraptown | Identified Junk Cannon 1296 | -7/Scraptown | Visited Abandonware Association 1313 | -7/Scraptown | Visited DA-N13 Charitable Foundation 1320 | -7/Scraptown | Found DCF Scrap (28 items) 1350 | -7/Scraptown | Visited Junk Repository 1361 | -7/Scraptown | Visited Derelict Rescue Squad 1367 | -7/Scraptown | Found DRS Beacon 1382 | -7/Scraptown | Discovered new exit (range 3) 1425 | -7/Scraptown | Visited Analyses Database 1436 | -7/Scraptown | Visited Scrapoid Research Area 1486 | -7/Scraptown | Met Optimus 1486 | -7/Scraptown | Accepted into 0bPrime 1547 | -7/Scraptown | Civil war broke out across Scraptown 1572 | -7/Scraptown | Destroyed by SF-PN1(j) with Overtuned Pulse Rifle Last Messages --------------- membership. Optimus: I'm glad you stopped by to talk to me, otherwise I wouldn't know to prepare for this possibility. Looking forward to working with you, Dataface! 01530_ Dropped Junk Cannon. 01531_ Acquired Med. Treads. 01547_ ANNOUNCEMENT: The Council has discovered that 0bPrime has been recruiting others in a plan that puts all of Scraptown in danger. 01561_ NI-BJE(p): "We are one!" 01562_ NI-BJE(p) suffers critical hit (Burn). 01566_ NI-BJE(p) overheating. 01567_ NI-BJE(p) heat damages Mak. Hacking Suite, Mak. Hacking Suite, Imp. Heat Sink, EM Pulse Gun. 01567_ NI-BJE(p) overheating. 01568_ NI-BJE(p) destroyed. 01569_ CPS Tube expended. 01569_ CPS modules attach to SF-PN1(j). Map ----- +----------------------------------------------------+ | """"#####???????????????????????"""##"""##"" ##""" | | "#??????????????????????????#"" ##""!##"" ##!!" | | ""#??????????????????????????#"" | | """#??????????????????????????# | | """#??????????????????????????################### | | """"#????????????????????????????????????????????? | | #####?????????????###########????????????????????? | | ??????????????????# """""#????????????????????? | | ??????????????????# " " " #????????????????????? | | ??????????????????#""" #????????????????????? | | ??#########???????#""" #????????????????????? | | ??# #???????#""" " #??##########????????? | | ??# "" "" #???????# " """#??#""""""""#??####### | | ??# ""X"" #???????# s"""#??#"" " X "#??#![# ! | | ??# """"" #???????#"" """#??#"" "#??#] #!!] | | ??# """ #???????#" " #??#""" ""#??# # | | ??# " #???????#" #??# #??# | | ??# #???????# #??# #??# | | ??# #???????####### ###??###### ###??###### | | ######## ####???????##### ########### ########### | | #???????#"""" """"""""""" """"""""""" | | #???????#" | | #???????#" | | #???????#" j | | #???????#" | | ### #???#####" @ | | ## #???#"""" """"""""""""""""""""""" | | "## #???#"""" """"""""""""""""""""""" | | "## #???#"""" ""###### ############# | | "## #???#"""" ""# ##?????? | | "## #???#"""" ""# X"??????? | | "## ###?#"""" ""# "" "" ##?????? | | "## ""#"#"""" ""# "" "" X"#?????? | | "## """"#"""" ""# " " ######## | | "## ""#######" "" "" | | ### ###?????#" "" "" | | ??# #########" ""# " " ######## | | ??# ""# "" "" ""#?????? | | ??# ""# "" "" ##?????? | | ??# ""# X"#?????? | | ??# % ""# ##?????? | | ### ""###### ############# | | """"""""""""""""""""""" | | """"""""""""""""""""""" | | | | | | | | #""""#" | | #????#" | | #????#"""""" """"""""""" """""""""" | +----------------------------------------------------+ Best States ------------- Heat Dissipation 25 Energy Generation 15 Energy Capacity 250 Matter Stores 300 Matter Capacity 300 Sight Range 21 Robot Scan Range 14 Terrain Scan Density 10 Additional Mass Support 9 Evasion (%) 62 Recoil Reduction 2 Item Schematics ----------------- None Robot Schematics ------------------ None Fabricated ------------ Nothing Repaired ---------- Nothing Alien Tech Used ----------------- None Achievements -------------- None Challenges ------------ None Game ------ Seed PhaseCargoHumpback Manual? 0 Play Time 00:32:51 Cumulative 104.2 hours Start 2025.05.26 @ 23:27:13 End 2025.05.26 @ 23:58:32 Sessions 1 Manual Loads 0 Difficulty Rogue Special Mode None Game No. 127 Rogue 127 Adventurer 0 Explorer 0 Win Type - Total 0 Types 0/0/0/0/0/0/0/0/0/0 Lore% 44 Gallery% 47 Achievement% 43 Wizard Run 0 Options --------- Layout 2 ASCII 0 Keyboard 0 Movement Numpad Keybinds 0 Fullscreen 1 Font 24/Smallcaps Map View 50x44 Zoom Use 0% Tactical HUD 1 Map Filters NONE Filters NONE Steam 1 RUN: 427fa222-2a79-4180-b629-54c7b2f00909